fUST/lending_fUST_20250715
["ID","MTS","AMOUNT","RATE_DAILY","PERIOD"]
[372247191,1752562155064,-469.6189657,0.00019374,2]
[372247192,1752562155085,-460.0,0.00019374,2]
[372247193,1752562155107,-460.0,0.00019374,2]
[372247194,1752562155129,-460.0,0.00019374,2]
[372247195,1752562155151,-349.21344755,0.00019374,2]
[372247196,1752562155172,-460.0,0.00019374,2]
[372247197,1752562155200,-460.0,0.00019374,2]
[372247198,1752562155230,-460.0,0.00019374,2]
[372247199,1752562155253,-500.0,0.00019374,2]
[372247200,1752562155274,-500.0,0.00019374,2]
[372247201,1752562155296,-460.0,0.00019374,2]
[372247202,1752562155318,-460.0,0.00019374,2]
[372247203,1752562155339,-464.47621546,0.00019374,2]
[372247204,1752562155360,-460.0,0.00019374,2]
[372247205,1752562155380,-460.0,0.00019374,2]
[372247206,1752562155401,-500.0,0.00019374,2]
[372247207,1752562155422,-460.0,0.00019374,2]
[372247208,1752562155441,-449.26862842,0.00019374,2]
[372247209,1752562155463,-460.0,0.00019374,2]
[372247210,1752562155483,-460.0,0.00019374,2]
[372247211,1752562155504,-460.0,0.00019374,2]
[372247212,1752562155525,-568.66,0.00019374,2]
[372247213,1752562155546,-460.0,0.00019374,2]
[372247214,1752562155567,-460.0,0.00019374,2]
[372247215,1752562155588,-460.0,0.00019374,2]
[372247216,1752562155610,-460.0,0.00019374,2]
[372247217,1752562155633,-460.0,0.00019374,2]
[372247218,1752562155656,-618.74,0.00019374,2]
[372247219,1752562155677,-460.0,0.00019374,2]
[372247220,1752562155702,-460.0,0.00019374,2]
[372247221,1752562155724,-460.0,0.00019374,2]
[372247222,1752562155747,-878.06,0.00019374,2]
[372247223,1752562155771,-460.0,0.00019374,2]
[372247224,1752562155792,-460.0,0.00019374,2]
[372247225,1752562155815,-460.0,0.00019374,2]
[372247226,1752562155836,-460.0,0.00019374,2]
[372247227,1752562155858,-460.0,0.00019374,2]
[372247228,1752562155879,-460.0,0.00019374,2]
[372247229,1752562155900,-460.0,0.00019374,2]
[372247230,1752562155921,-460.0,0.00019374,2]
[372247231,1752562155943,-980.22,0.00019374,2]
[372247232,1752562155965,-219.89774775,0.00019374,2]
[372247233,1752562155986,-460.0,0.00019374,2]
[372247234,1752562156009,-460.57081208,0.00019374,2]
[372247235,1752562156029,-460.0,0.00019374,2]
[372247236,1752562156049,-460.0,0.00019374,2]
[372247237,1752562156070,-885.58,0.00019374,2]
[372247238,1752562156093,-720.55,0.00019374,2]
[372247239,1752562156115,-1057.22,0.00019374,2]
[372247240,1752562156138,-1390.35,0.00019374,2]
[372247241,1752562156159,-460.0,0.00019374,2]
[372247242,1752562156179,-722.11,0.00019374,2]
[372247243,1752562156313,-460.0,0.00019374,2]
[372247244,1752562156337,-899.21,0.00019374,2]
[372247245,1752562156359,-899.21,0.00019374,2]
[372247246,1752562156380,-460.0,0.00019374,2]
[372247247,1752562156403,-808.59,0.00019374,2]
[372247248,1752562156423,-460.0,0.00019374,2]
[372247249,1752562156444,-888.08,0.00019374,2]
[372247250,1752562156465,-460.0,0.00019374,2]
[372247251,1752562156486,-460.0,0.00019374,2]
[372247252,1752562156509,-460.0,0.00019374,2]
[372247253,1752562156530,-460.0,0.00019374,2]
[372247254,1752562156551,-1059.82,0.00019374,2]
[372247255,1752562156574,-468.49643586,0.00019374,2]
[372247256,1752562156596,-460.0,0.00019374,2]
[372247257,1752562156618,-875.06,0.00019374,2]
[372247258,1752562156641,-460.0,0.00019374,2]
[372247259,1752562156663,-464.07940369,0.00019374,2]
[372247260,1752562156684,-464.03925104,0.00019375,2]
[372247261,1752562156704,-458.07108097,0.00019375,2]
[372247262,1752562156725,-412.59613661,0.00019375,2]
[372247263,1752562156746,-462.53617757,0.00019375,2]
[372247264,1752562156766,-460.0,0.00019375,2]
[372247265,1752562156788,-460.0,0.00019375,2]
[372247266,1752562156810,-464.81383491,0.00019375,2]
[372247267,1752562156831,-460.0,0.00019375,2]
[372247268,1752562156851,-462.10483155,0.00019375,2]
[372247269,1752562156872,-460.0,0.00019375,2]
[372247270,1752562156893,-460.0,0.00019375,2]
[372247271,1752562156914,-460.0,0.00019375,2]
[372247272,1752562156935,-263.30539684,0.00019375,2]
[372247273,1752562156956,-466.57725566,0.00019375,2]
[372247274,1752562156977,-464.3061091,0.00019375,2]
[372247275,1752562156997,-463.48982438,0.00019375,2]
[372247276,1752562157017,-461.83076136,0.00019375,2]
[372247277,1752562157038,-460.0,0.00019375,2]
[372247278,1752562157057,-462.86709415,0.00019375,2]
[372247279,1752562157077,-375.11682038,0.00019375,2]
[372247280,1752562157098,-460.0,0.00019375,2]
[372247281,1752562157118,-463.86449508,0.00019375,2]
[372247282,1752562157140,-460.0,0.00019375,2]
[372247283,1752562157161,-505.88,0.00019375,2]
[372247284,1752562157183,-500.0,0.00019375,2]
[372247285,1752562157207,-414.16457757,0.00019375,2]
[372247286,1752562157231,-827.79,0.00019375,2]
[372247287,1752562157255,-460.0,0.00019375,2]
[372247288,1752562157275,-460.0,0.00019375,2]
[372247289,1752562157296,-460.0,0.00019375,2]
[372247290,1752562157329,-584.84,0.00019375,2]
[372247291,1752562157353,-460.0,0.00019375,2]
[372247292,1752562157376,-460.0,0.00019375,2]
[372247293,1752562157398,-460.0,0.00019375,2]
[372247294,1752562157421,-6716.04,0.00019375,2]
[372247295,1752562157443,-1559.66,0.00019375,2]
[372247296,1752562157469,-1136.82,0.00019375,2]
[372247297,1752562157492,-874.61,0.00019375,2]
[372247298,1752562157513,-2386.42,0.00019375,2]
[372247299,1752562157534,-899.21,0.00019375,2]
[372247300,1752562157555,-460.0,0.00019375,2]
[372247301,1752562157577,-562.3,0.00019375,2]
[372247302,1752562157601,-955.93,0.00019375,2]
[372247303,1752562157623,-3601.14,0.00019375,2]
[372247304,1752562157649,-604.75,0.00019375,2]
[372247305,1752562157669,-500.0,0.00019376,2]
[372247306,1752562157690,-500.0,0.00019513,2]
[372247307,1752562157711,-3000.0,0.0001955,2]
[372247308,1752562157736,-899.21,0.00019554,2]
[372247309,1752562157757,-3000.0,0.00019555,2]
[372247310,1752562157779,-460.0,0.00019646,2]
[372247311,1752562157800,-460.0,0.00019646,2]
[372247312,1752562157821,-456.07668683,0.00019646,2]
[372247329,1752562232299,-166.0,0.00018478,2]
[372247330,1752562232310,-220.0,0.00019178,2]
[372247331,1752562232320,-312.49577003,0.00019178,2]
[372247333,1752562232332,-460.0,0.00019178,2]
[372247335,1752562232343,-460.0,0.00019178,2]
[372247336,1752562232352,-461.64054771,0.00019178,2]
[372247337,1752562232362,-462.36494555,0.00019178,2]
[372247338,1752562232372,-460.0,0.00019178,2]
[372247339,1752562232382,-1016.0,0.00019371,2]
[372247340,1752562232393,-460.0,0.00019372,2]
[372247341,1752562232403,-196.0,0.00019372,2]
[372247342,1752562232413,-300.0,0.00019372,2]
[372247343,1752562232422,-300.0,0.00019372,2]
[372247344,1752562232432,-5786.89,0.00019372,2]
[372247345,1752562232442,-488.50904993,0.00019372,2]
[372247346,1752562232453,-819.58,0.00019373,2]
[372247347,1752562232463,-874.96,0.00019373,2]
[372247348,1752562232472,-460.0,0.00019373,2]
[372247349,1752562232481,-344.41009111,0.00019373,2]
[372247350,1752562232491,-460.0,0.00019373,2]
[372247351,1752562232500,-520.78,0.00019373,2]
[372247352,1752562232510,-460.0,0.00019373,2]
[372247353,1752562232520,-256.64130121,0.00019373,2]
[372247354,1752562232530,-460.0,0.00019373,2]
[372247355,1752562232539,-547.99645538,0.00019373,2]
[372247356,1752562232549,-977.84,0.00019373,2]
[372247357,1752562232559,-602.83262648,0.00019373,2]
[372247358,1752562232568,-460.0,0.00019374,2]
[372247359,1752562232578,-460.0,0.00019374,2]
[372247360,1752562232588,-826.33,0.00019374,2]
[372247361,1752562232598,-460.0,0.00019374,2]
[372247362,1752562232608,-460.0,0.00019374,2]
[372247363,1752562232618,-460.0,0.00019374,2]
[372247364,1752562232628,-460.0,0.00019374,2]
[372247365,1752562232637,-460.0,0.00019374,2]
[372247366,1752562232647,-581.02,0.00019374,2]
[372247367,1752562232657,-460.0,0.00019374,2]
[372247368,1752562232670,-460.0,0.00019374,2]
[372247369,1752562232679,-460.0,0.00019374,2]
[372247370,1752562232689,-460.0,0.00019374,2]
[372247371,1752562232700,-460.0,0.00019374,2]
[372247372,1752562232711,-1761.32,0.00019375,2]
[372247373,1752562232721,-2352.52,0.00019375,2]
[372247374,1752562232730,-460.0,0.00019452,2]
[372247375,1752562232741,-460.0,0.00019452,2]
[372247376,1752562232751,-3.92331317,0.00019646,2]
[372247377,1752562232761,-460.0,0.00019646,2]
[372247378,1752562232771,-564.46,0.00019646,2]
[372247379,1752562232782,-632.47,0.00019646,2]
[372247380,1752562232792,-3532.72,0.00019646,2]
[372247381,1752562232802,-460.0,0.00019646,2]
[372247382,1752562232813,-460.0,0.00019646,2]
[372247383,1752562232822,-5786.89,0.00019646,2]
[372247384,1752562232833,-460.0,0.00019647,2]
[372247385,1752562232843,-460.0,0.00019647,2]
[372247386,1752562232853,-460.0,0.00019647,2]
[372247387,1752562232863,-460.0,0.00019647,2]
[372247388,1752562232873,-460.0,0.00019647,2]
[372247389,1752562232883,-4811.36,0.00019647,2]
[372247390,1752562232893,-460.0,0.00019647,2]
[372247391,1752562232904,-1071.41,0.00019647,2]
[372247392,1752562232913,-2535.92,0.00019647,2]
[372247393,1752562232923,-658.22,0.00019647,2]
[372247394,1752562232932,-460.0,0.00019647,2]
[372247395,1752562232942,-3527.94,0.00019647,2]
[372247396,1752562232953,-476.88460471,0.00019647,2]
[372247397,1752562232966,-215.56539529,0.00019647,2]
[372247398,1752562232975,-218.05592461,0.00019647,2]
[372247399,1752562232985,-460.0,0.00019647,2]
[372247400,1752562232996,-463.25,0.00019647,2]
[372247401,1752562233006,-810.61,0.00019647,2]
[372247402,1752562233016,-2370.09,0.00019647,2]
[372247403,1752562233026,-460.0,0.00019647,2]
[372247404,1752562233036,-509.93,0.00019647,2]
[372247405,1752562233045,-819.58,0.00019647,2]
[372247406,1752562233055,-874.96,0.00019647,2]
[372247407,1752562233065,-460.0,0.00019647,2]
[372247408,1752562233074,-460.0,0.00019647,2]
[372247409,1752562233084,-460.0,0.00019647,2]
[372247410,1752562233094,-460.0,0.00019647,2]
[372247411,1752562233103,-977.84,0.00019647,2]
[372247412,1752562233113,-460.0,0.00019648,2]
[372247413,1752562233123,-460.0,0.00019648,2]
[372247414,1752562233132,-460.0,0.00019648,2]
[372247415,1752562233142,-460.0,0.00019648,2]
[372247416,1752562233153,-460.0,0.00019648,2]
[372247417,1752562233163,-426.94456967,0.00019648,2]
[372247418,1752562233173,-460.0,0.00019648,2]
[372247419,1752562233182,-446.71181951,0.00019648,2]
[372247420,1752562233192,-460.0,0.00019648,2]
[372247421,1752562233203,-500.0,0.00019648,2]
[372247422,1752562233213,-460.0,0.00019648,2]
[372247423,1752562233223,-568.66,0.00019648,2]
[372247424,1752562233232,-460.0,0.00019648,2]
[372247425,1752562233243,-460.0,0.00019648,2]
[372247426,1752562233253,-384.33994862,0.00019648,2]
[372247427,1752562233263,-460.0,0.00019648,2]
[372247428,1752562233273,-618.74,0.00019648,2]
[372247429,1752562233283,-460.0,0.00019648,2]
[372247430,1752562233293,-460.0,0.00019648,2]
[372247431,1752562233303,-885.58,0.00019648,2]
[372247432,1752562233312,-720.55,0.00019648,2]
[372247433,1752562233322,-1057.22,0.00019648,2]
[372247434,1752562233332,-1390.35,0.00019648,2]
[372247435,1752562233341,-460.0,0.00019648,2]
[372247436,1752562233351,-722.11,0.00019648,2]
[372247437,1752562233361,-382.65225744,0.00019648,2]
[372247438,1752562233370,-899.21,0.00019648,2]
[372247439,1752562233381,-460.0,0.00019648,2]
[372247440,1752562233391,-808.59,0.00019648,2]
[372247441,1752562233401,-888.08,0.00019648,2]
[372247442,1752562233411,-460.0,0.00019648,2]
[372247443,1752562233421,-460.0,0.00019648,2]
[372247444,1752562233431,-460.0,0.00019648,2]
[372247445,1752562233440,-1059.82,0.00019648,2]
[372247446,1752562233450,-460.0,0.00019648,2]
[372247447,1752562233460,-875.06,0.00019648,2]
[372247448,1752562233470,-460.0,0.00019648,2]
[372247449,1752562233479,-826.33,0.00019648,2]
[372247450,1752562233490,-460.0,0.00019648,2]
[372247451,1752562233500,-460.0,0.00019648,2]
[372247452,1752562233510,-460.0,0.00019648,2]
[372247453,1752562233520,-581.02,0.00019648,2]
[372247454,1752562233529,-460.0,0.00019648,2]
[372247455,1752562233539,-460.0,0.00019648,2]
[372247456,1752562233549,-460.0,0.00019648,2]
[372247457,1752562233559,-460.0,0.00019649,2]
[372247458,1752562233569,-460.0,0.00019649,2]
[372247459,1752562233579,-467.39904636,0.00019649,2]
[372247460,1752562233589,-460.0,0.00019649,2]
[372247461,1752562233599,-460.0,0.00019649,2]
[372247462,1752562233609,-460.0,0.00019649,2]
[372247463,1752562233619,-460.0,0.00019649,2]
[372247464,1752562233628,-460.0,0.00019649,2]
[372247465,1752562233638,-6716.04,0.00019649,2]
[372247466,1752562233649,-1559.66,0.00019649,2]
[372247467,1752562233659,-1136.82,0.00019649,2]
[372247468,1752562233672,-874.61,0.00019649,2]
[372247469,1752562233682,-2386.42,0.00019649,2]
[372247470,1752562233692,-460.0,0.00019649,2]
[372247471,1752562233705,-562.3,0.00019649,2]
[372247472,1752562233716,-955.93,0.00019649,2]
[372247473,1752562233726,-3601.14,0.00019649,2]
[372247474,1752562233736,-604.75,0.00019649,2]
[372247475,1752562233750,-1761.32,0.00019649,2]
[372247476,1752562233761,-2352.52,0.00019649,2]
[372247477,1752562233771,-1224.57808646,0.00019686,2]
[372247478,1752562233780,-5108.46914216,0.00019689,2]
[372247479,1752562233790,-460.0,0.00019726,2]
[372247480,1752562233800,-460.0,0.00019726,2]
[372247481,1752562233811,-322.6,0.00019776,3]
[372247482,1752562233821,-500.0,0.00019784,2]
[372247483,1752562233832,-899.21,0.00019784,2]
[372247484,1752562233842,-500.0,0.00019785,2]
[372247485,1752562233852,-899.21,0.00019785,2]
[372247486,1752562233862,-460.0,0.00019786,2]
[372247487,1752562233872,-463.85438531,0.00019786,2]
[372247488,1752562233882,-462.69465909,0.00019786,2]
[372247489,1752562233892,-461.10936149,0.00019786,2]
[372247490,1752562233902,-460.0,0.00019786,2]
[372247491,1752562233912,-463.35997833,0.00019786,2]
[372247492,1752562233923,-461.53852306,0.00019786,2]
[372247493,1752562234041,-460.0,0.00019786,2]
[372247494,1752562234052,-296.12429674,0.00019786,2]
[372247495,1752562234062,-460.0,0.00019786,2]
[372247496,1752562234073,-460.0,0.00019786,2]
[372247497,1752562234083,-157.64069832,0.00019786,2]
[372247498,1752562234092,-334.15937102,0.00019786,2]
[372247499,1752562234102,-460.0,0.00019786,2]
[372247500,1752562234112,-465.89611425,0.00019786,2]
[372247501,1752562234122,-463.68114907,0.00019786,2]
[372247502,1752562234132,-460.0,0.00019786,2]
[372247503,1752562234141,-460.0,0.00019786,2]
[372247504,1752562234151,-460.0,0.00019786,2]
[372247505,1752562234160,-460.0,0.00019786,2]
[372247506,1752562234170,-460.0,0.00019786,2]
[372247507,1752562234179,-462.31412239,0.00019786,2]
[372247508,1752562234189,-460.0,0.00019786,2]
[372247509,1752562234198,-460.0,0.00019786,2]
[372247510,1752562234210,-460.0,0.00019786,2]
[372247511,1752562234220,-460.0,0.00019786,2]
[372247512,1752562234230,-460.0,0.00019786,2]
[372247513,1752562234240,-497.93,0.00019786,2]
[372247514,1752562234250,-460.0,0.00019786,2]
[372247515,1752562234259,-460.0,0.00019786,2]
[372247516,1752562234269,-460.0,0.00019786,2]
[372247517,1752562234279,-460.0,0.00019786,2]
[372247518,1752562234289,-460.0,0.00019786,2]
[372247519,1752562234299,-200.18986227,0.00019786,2]
[372247520,1752562234309,-475.64565832,0.00019786,2]
[372247521,1752562234319,-463.35653965,0.00019786,2]
[372247522,1752562234328,-460.0,0.00019786,2]
[372247523,1752562234338,-460.0,0.00019786,2]
[372247524,1752562234347,-460.0,0.00019786,2]
[372247525,1752562234357,-513.90813364,0.00019786,2]
[372247526,1752562234367,-470.58252024,0.00019786,2]
[372247527,1752562234378,-460.0,0.00019786,2]
[372247528,1752562234388,-463.71585953,0.00019786,2]
[372247529,1752562234398,-514.89287782,0.00019786,2]
[372247530,1752562234407,-636.48,0.00019786,2]
[372247531,1752562234417,-460.0,0.00019786,2]
[372247532,1752562234427,-468.59372322,0.00019786,2]
[372247533,1752562234437,-460.0,0.00019786,2]
[372247534,1752562234446,-460.0,0.00019786,2]
[372247535,1752562234456,-460.0,0.00019786,2]
[372247536,1752562234465,-460.0,0.00019786,2]
[372247537,1752562234474,-460.0,0.00019786,2]
[372247538,1752562234483,-899.21,0.00019787,2]
[372247539,1752562234493,-951.45866492,0.00019821,2]
[372247540,1752562234502,-9897.97505491,0.000199,2]
[372247541,1752562234513,-460.0,0.0001992,2]
[372247542,1752562234522,-460.0,0.0001992,2]
[372247543,1752562234531,-460.0,0.0001992,2]
[372247544,1752562234540,-564.46,0.0001992,2]
[372247545,1752562234550,-632.47,0.0001992,2]
[372247546,1752562234559,-3532.72,0.0001992,2]
[372247547,1752562234569,-460.0,0.0001992,2]
[372247548,1752562234578,-460.0,0.0001992,2]
[372247549,1752562234587,-5786.89,0.0001992,2]
[372247550,1752562234597,-460.0,0.00019921,2]
[372247551,1752562234607,-460.0,0.00019921,2]
[372247552,1752562234617,-460.0,0.00019921,2]
[372247553,1752562234626,-460.0,0.00019921,2]
[372247554,1752562234635,-4811.36,0.00019921,2]
[372247555,1752562234644,-460.0,0.00019921,2]
[372247556,1752562234654,-1071.41,0.00019921,2]
[372247557,1752562234666,-2535.92,0.00019921,2]
[372247558,1752562234675,-658.22,0.00019921,2]
[372247559,1752562234684,-3527.94,0.00019921,2]
[372247560,1752562234694,-692.45,0.00019921,2]
[372247561,1752562234703,-460.0,0.00019921,2]
[372247562,1752562234713,-463.25,0.00019921,2]
[372247563,1752562234722,-810.61,0.00019921,2]
[372247564,1752562234733,-2370.09,0.00019921,2]
[372247565,1752562234743,-460.0,0.00019921,2]
[372247566,1752562234753,-509.93,0.00019921,2]
[372247567,1752562234763,-819.58,0.00019921,2]
[372247568,1752562234772,-874.96,0.00019921,2]
[372247569,1752562234782,-460.0,0.00019921,2]
[372247570,1752562234792,-460.0,0.00019921,2]
[372247571,1752562234801,-460.0,0.00019921,2]
[372247572,1752562234811,-460.0,0.00019921,2]
[372247573,1752562234822,-977.84,0.00019921,2]
[372247574,1752562234831,-460.0,0.00019922,2]
[372247575,1752562234841,-460.0,0.00019922,2]
[372247576,1752562234851,-269.94443488,0.00019922,2]
[372247577,1752562234861,-460.0,0.00019922,2]
[372247578,1752562234871,-460.0,0.00019922,2]
[372247579,1752562234881,-460.0,0.00019922,2]
[372247580,1752562234892,-460.0,0.00019922,2]
[372247581,1752562234902,-500.0,0.00019922,2]
[372247582,1752562234912,-460.0,0.00019922,2]
[372247583,1752562234922,-568.66,0.00019922,2]
[372247584,1752562234932,-460.0,0.00019922,2]
[372247585,1752562234942,-460.0,0.00019922,2]
[372247586,1752562234951,-618.74,0.00019922,2]
[372247587,1752562234962,-409.50600542,0.00019922,2]
[372247588,1752562234972,-460.0,0.00019922,2]
[372247589,1752562234981,-885.58,0.00019922,2]
[372247590,1752562234991,-720.55,0.00019922,2]
[372247591,1752562235000,-1057.22,0.00019922,2]
[372247592,1752562235010,-1390.35,0.00019922,2]
[372247593,1752562235020,-460.0,0.00019922,2]
[372247594,1752562235030,-722.11,0.00019922,2]
[372247595,1752562235040,-899.21,0.00019922,2]
[372247596,1752562235051,-460.0,0.00019922,2]
[372247597,1752562235062,-808.59,0.00019922,2]
[372247598,1752562235073,-888.08,0.00019922,2]
[372247599,1752562235083,-460.0,0.00019922,2]
[372247600,1752562235094,-248.12,0.00019922,2]
[372247601,1752562235104,-460.0,0.00019922,2]
[372247602,1752562235113,-1059.82,0.00019922,2]
[372247603,1752562235123,-460.0,0.00019922,2]
[372247604,1752562235132,-875.06,0.00019922,2]
[372247605,1752562235142,-826.33,0.00019922,2]
[372247606,1752562235153,-158.44706921,0.00019922,2]
[372247607,1752562235163,-460.0,0.00019922,2]
[372247608,1752562235173,-581.02,0.00019922,2]
[372247609,1752562235183,-460.0,0.00019922,2]
[372247610,1752562235193,-460.0,0.00019922,2]
[372247611,1752562235202,-460.0,0.00019923,2]
[372247612,1752562235213,-460.0,0.00019923,2]
[372247613,1752562235222,-460.0,0.00019923,2]
[372247614,1752562235232,-460.0,0.00019923,2]
[372247615,1752562235242,-460.0,0.00019923,2]
[372247616,1752562235252,-6716.04,0.00019923,2]
[372247617,1752562235262,-1559.66,0.00019923,2]
[372247618,1752562235272,-1136.82,0.00019923,2]
[372247619,1752562235282,-874.61,0.00019923,2]
[372247620,1752562235293,-2386.42,0.00019923,2]
[372247621,1752562235303,-460.0,0.00019923,2]
[372247622,1752562235313,-562.3,0.00019923,2]
[372247623,1752562235323,-955.93,0.00019923,2]
[372247624,1752562235333,-3601.14,0.00019923,2]
[372247625,1752562235342,-604.75,0.00019923,2]
[372247626,1752562235352,-1761.32,0.00019923,2]
[372247627,1752562235361,-2352.52,0.00019923,2]
[372247628,1752562235371,-500.0,0.00019998,2]
[372247629,1752562235380,-500.0,0.00019998,2]
[372247630,1752562235390,-500.0,0.00019998,2]
[372247631,1752562235399,-899.21,0.00019998,2]
[372247632,1752562235409,-899.21,0.00019998,2]
[372247633,1752562235418,-899.21,0.00019998,2]
[372247634,1752562235428,-460.0,0.00019999,2]
[372247635,1752562235438,-463.67626189,0.00019999,2]
[372247636,1752562235449,-460.0,0.00019999,2]
[372247637,1752562235459,-460.0,0.00019999,2]
[372247638,1752562235468,-463.44163696,0.00019999,2]
[372247639,1752562235479,-460.0,0.00019999,2]
[372247640,1752562235489,-460.0,0.00019999,2]
[372247641,1752562235499,-460.0,0.00019999,2]
[372247642,1752562235508,-460.0,0.00019999,2]
[372247643,1752562235517,-460.0,0.00019999,2]
[372247644,1752562235528,-460.0,0.00019999,2]
[372247645,1752562235539,-262.78405349,0.00019999,2]
[372247646,1752562235549,-460.0,0.00019999,2]
[372247647,1752562235558,-460.0,0.00019999,2]
[372247648,1752562235568,-460.0,0.00019999,2]
[372247649,1752562235578,-876.73,0.00019999,2]
[372247650,1752562235587,-601.14,0.00019999,2]
[372247651,1752562235597,-460.0,0.00019999,2]
[372247652,1752562235606,-460.0,0.00019999,2]
[372247653,1752562235616,-460.0,0.00019999,2]
[372247654,1752562235625,-530.91,0.00019999,2]
[372247655,1752562235635,-460.0,0.00019999,2]
[372247656,1752562235644,-460.0,0.00019999,2]
[372247657,1752562235655,-463.18192409,0.00019999,2]
[372247658,1752562235667,-460.0,0.00019999,2]
[372247659,1752562235676,-859.4,0.00019999,2]
[372247660,1752562235686,-460.0,0.00019999,2]
[372247661,1752562235695,-460.0,0.00019999,2]
[372247662,1752562235706,-522.1619707,0.00019999,2]
[372247663,1752562235716,-460.0,0.00019999,2]
[372247664,1752562235726,-460.0,0.00019999,2]
[372247665,1752562235735,-460.0,0.00019999,2]
[372247666,1752562235745,-460.0,0.00019999,2]
[372247667,1752562235755,-460.0,0.00019999,2]
[372247668,1752562235764,-460.0,0.00019999,2]
[372247669,1752562235774,-460.0,0.00019999,2]
[372247670,1752562235784,-460.0,0.00019999,2]
[372247671,1752562235794,-460.0,0.00019999,2]
[372247672,1752562235805,-1167.82,0.00019999,2]
[372247673,1752562235815,-700.69,0.00019999,2]
[372247674,1752562235825,-941.73,0.00019999,2]
[372247675,1752562235834,-460.0,0.00019999,2]
[372247676,1752562235844,-5746.08,0.00019999,2]
[372247677,1752562235854,-460.0,0.00019999,2]
[372247678,1752562235864,-460.0,0.00019999,2]
[372247679,1752562235874,-460.0,0.00019999,2]
[372247680,1752562235883,-460.0,0.00019999,2]
[372247681,1752562235893,-460.0,0.00019999,2]
[372247682,1752562235903,-460.0,0.00019999,2]
[372247683,1752562235912,-2477.79,0.00019999,2]
[372247684,1752562235922,-460.0,0.00019999,2]
[372247685,1752562235932,-460.0,0.00019999,2]
[372247686,1752562235941,-460.0,0.00019999,2]
[372247687,1752562235951,-460.0,0.00019999,2]
[372247688,1752562235962,-460.0,0.0002,2]
[372247689,1752562235972,-460.0,0.0002,2]
[372247690,1752562235982,-500.0,0.00020059,2]
[372247691,1752562235991,-899.21,0.00020059,2]
[372247692,1752562236000,-597.62802116,0.0002006,2]
[372247693,1752562236010,-460.0,0.0002006,2]
[372247694,1752562236020,-460.0,0.0002006,2]
[372247695,1752562236029,-557.76820837,0.0002006,2]
[372247696,1752562236039,-460.0,0.0002006,2]
[372247697,1752562236048,-460.0,0.0002006,2]
[372247698,1752562236058,-460.0,0.0002006,2]
[372247699,1752562236067,-497.93,0.0002006,2]
[372247700,1752562236168,-460.0,0.0002006,2]
[372247701,1752562236178,-460.0,0.0002006,2]
[372247702,1752562236188,-460.0,0.0002006,2]
[372247703,1752562236198,-460.0,0.0002006,2]
[372247704,1752562236207,-636.48,0.0002006,2]
[372247705,1752562236227,-460.0,0.0002006,2]
[372247706,1752562236237,-460.0,0.0002006,2]
[372247707,1752562236246,-500.0,0.00020061,2]
[372247708,1752562236256,-899.21,0.00020061,2]